Workbook

Sheet КБ
A1: Прогноз основных характеристик консолидированного бюджета Пугачевского района
A2: на 2019 год и на плановый период 2020 и 2021 годов
G3: тыс.рублей
A4: Показатели | B4: 2016 год (отчет) | C4: 2017 год (отчет) | D4: 2018 год (оценка) | E4: прогноз
E5: 2019 год | F5: 2020 год | G5: 2021 год
A6: Доходы - всего | B6: 865,130.1 | C6: 989,630.5 | D6: 1,034,396.4 | E6: =E9+E10 -> 1,014,769.7 | F6: =F9+F10 -> 913,618.4 | G6: 954,157.9
A7: темпы роста к предыдущему году, % | B7: 108.9 | C7: 114.4 | D7: 104.5 | E7: 98.1 | F7: 90.0 | G7: 104.4
A8: в том числе:
A9: налоговые и неналоговые доходы | B9: 267,115.9 | C9: 269,381.5 | D9: 290,803.2 | E9: 288,577.8 | F9: 291,877.0 | G9: 299,851.7
A10: безвозмездные поступления | B10: 598,014.2 | C10: 720,249.0 | D10: 743,593.2 | E10: 726,191.9 | F10: 621,741.4 | G10: 654,306.2
A11: Расходы - всего | B11: 887,813.3 | C11: 979,096.7 | D11: 1,076,486.1 | E11: 1,003,696.1 | F11: 933,618.4 | G11: 926,307.9
A12: темпы роста к предыдущему году, % | B12: =B11/818444.3*100 -> 108.5 | C12: =C11/B11*100 -> 110.3 | D12: =D11/C11*100 -> 109.9 | E12: =E11/D11*100 -> 93.2 | F12: 93.0 | G12: 99.2
A13: Дефицит (-), профицит (+) | B13: =B6-B11 -> -22,683.2 | C13: 10,533.8 | D13: -42,089.7 | E13: 11,073.6 | F13: -20,000.0 | G13: 27,850.0
A15: Прогноз основных характеристик бюджета Пугачевского муниципального района
A16: на 2019 год и на плановый период 2020 и 2021 годов
G17: тыс.рублей
A18: Показатели | B18: 2016 год (отчет) | C18: 2017 год (отчет) | D18: 2018 год (оценка) | E18: прогноз
E19: 2019 год | F19: 2020 год | G19: 2021 год
A20: Доходы - всего | B20: =B23+B24 -> 810,327.9 | C20: =C23+C24 -> 871,418.0 | D20: 915,968.3 | E20: =E23+E24 -> 919,897.3 | F20: =F23+F24 -> 820,355.7 | G20: 858,891.0
A21: темпы роста к предыдущему году, % | B21: 109.1 | C21: 107.5 | D21: 105.1 | E21: 100.4 | F21: 89.2 | G21: 104.7
A22: в том числе: | M22: =851493.1-850352 -> 1141.1
A23: налоговые и неналоговые доходы | B23: 182,226.3 | C23: 176,183.2 | D23: 203,820.8 | E23: 195,290.1 | F23: 200,019.1 | G23: 205,989.6
A24: безвозмездные поступления | B24: 628,101.6 | C24: 695,234.8 | D24: 712,147.5 | E24: 724,607.2 | F24: 620,336.6 | G24: 652,901.4
A25: Расходы - всего | B25: 831,445.7 | C25: 872,640.9 | D25: 935,813.7 | E25: 909,103.2 | F25: 840,355.7 | G25: 831,041.0
A26: темпы роста к предыдущему году, % | B26: =B25/777568.4*100 -> 106.9 | C26: =C25/B25*100 -> 105.0 | D26: =D25/C25*100 -> 107.2 | E26: =E25/D25*100 -> 97.1 | F26: =F25/E25*100 -> 92.4 | G26: =G25/F25*100 -> 98.9
A27: Дефицит (-), профицит (+) | B27: =B20-B25 -> -21,117.8 | C27: -1,222.9 | D27: -19,845.4 | E27: 10,794.1 | F27: -20,000.0 | G27: 27,850.0
A29: Прогноз основных характеристик муниципальных образований Пугачевского муниципального района Саратовской области
A30: на 2019 год и на плановый период 2020 и 2021 годов
G31: тыс. рублей
A32: Показатели | B32: 2016 год (отчет) | C32: 2017 год (отчет) | D32: 2018 год (оценка) | E32: прогноз | K32: Расчет конс.доходов в ячейке
E33: 2019 год | F33: 2020 год | G33: 2021 год | K33: 2018 | L33: 2019 | M33: 2020
A34: Доходы - всего | B34: =B37+B38 -> 128,845.0 | C34: 125,631.5 | D34: 128,104.6 | E34: =E37+E38 -> 104,632.7 | F34: =F37+F38 -> 103,117.9 | G34: 105,224.6 | K34: =E20+E34-2652.9-23.7 -> 1,021,853.4 | L34: =F20+F34-2759.7-0.6 -> 920,713.3 | M34: =G20+G34-2855.2 -> 961,260.4
A35: темпы роста к предыдущему году, % | B35: 127.0 | C35: 97.5 | D35: 102.0 | E35: 81.7 | F35: 98.6 | G35: 102.0
A36: в том числе: | K36: Расчет конс.расходов в ячейке
A37: налоговые и неналоговые доходы | B37: 84,978.0 | C37: 93,289.5 | D37: 87,006.0 | E37: 93,288.3 | F37: 91,857.9 | G37: 93,862.1 | K37: 2018 | L37: 2019 | M37: 2020
A38: безвозмездные поступления | B38: 43,867.0 | C38: 32,342.0 | D38: 41,098.6 | E38: 11,344.4 | F38: 11,260.0 | G38: 11,362.5 | K38: =764306.7+84262.9-2652.9-23.7 -> 845893 | L38: =664877.6+86821-2759.7-0.6 -> 748938.3 | M38: =744982.4+89780.4-2855.2 -> 831907.6
A39: Расходы - всего | B39: 130,410.3 | C39: 113,874.8 | D39: 150,348.9 | E39: 104,353.2 | F39: 103,117.9 | G39: 105,224.6
A40: темпы роста к предыдущему году, % | B40: =B39/90491.7*100 -> 144.1 | C40: =C39/B39*100 -> 87.3 | D40: =D39/C39*100 -> 132.0 | E40: =E39/D39*100 -> 69.4 | F40: =F39/E39*100 -> 98.8 | G40: =G39/F39*100 -> 102.0
A41: Дефицит (-), профицит (+) | B41: =B34-B39 -> -1,565.3 | C41: 11,756.7 | D41: -22,244.3 | E41: 279.5 | F41: 0.0 | G41: 0.0
